[Event "GrandPrix_29.05"]
[Site "Chess.com"]
[Date "2020.05.29"]
[Round "8"]
[White "Margency"]
[Black "PavelShkapenko"]
[Result "1/2-1/2"]
[WhiteElo "2279"]
[BlackElo "2395"]
[TimeControl "600+2"]
[EndTime "12:53:33 PDT"]
[Termination "Game drawn by agreement"]

1. e4 {[%clk 0:10:01.9]} 1... c5 {[%clk 0:10:00.3]} 2. Nf3 {[%clk 0:10:02.7]}
2... e6 {[%clk 0:10:01.3]} 3. d4 {[%clk 0:10:04]} 3... cxd4 {[%clk 0:10:02.6]}
4. Nxd4 {[%clk 0:10:05.7]} 4... Nf6 {[%clk 0:10:04.1]} 5. Nc3 {[%clk 0:10:06.4]}
5... Nc6 {[%clk 0:10:05.3]} 6. Ndb5 {[%clk 0:10:06.8]} 6... Bb4 {[%clk
0:10:06.1]} 7. a3 {[%clk 0:10:07.5]} 7... Bxc3+ {[%clk 0:10:07.3]} 8. Nxc3
{[%clk 0:10:09.4]} 8... d5 {[%clk 0:10:08.8]} 9. exd5 {[%clk 0:10:10.7]} 9...
exd5 {[%clk 0:10:09.7]} 10. Bd3 {[%clk 0:10:11.4]} 10... d4 {[%clk 0:10:11.2]}
11. Ne2 {[%clk 0:10:12.3]} 11... Bf5 {[%clk 0:10:12]} 12. O-O {[%clk 0:10:00.3]}
12... Bg6 {[%clk 0:10:12.9]} 13. b4 {[%clk 0:09:59.9]} 13... O-O {[%clk
0:10:12.7]} 14. Bb2 {[%clk 0:10:00.9]} 14... Rc8 {[%clk 0:10:12.7]} 15. Bxg6
{[%clk 0:10:00.4]} 15... hxg6 {[%clk 0:10:13.5]} 16. Nxd4 {[%clk 0:09:53.1]}
16... Qd5 {[%clk 0:10:09.4]} 17. c4 {[%clk 0:09:00.9]} 17... Qxc4 {[%clk
0:10:04.5]} 18. Rc1 {[%clk 0:09:01.4]} 18... Qd5 {[%clk 0:08:30.8]} 19. Nxc6
{[%clk 0:08:58.8]} 19... Rxc6 {[%clk 0:08:16.8]} 20. Qxd5 {[%clk 0:08:11.5]}
20... Nxd5 {[%clk 0:08:16.8]} 21. Rxc6 {[%clk 0:08:12.2]} 21... bxc6 {[%clk
0:08:18.4]} 22. Rc1 {[%clk 0:08:13.3]} 22... Rc8 {[%clk 0:07:25.1]} 23. Bd4
{[%clk 0:08:07]} 23... a6 {[%clk 0:07:16.7]} 24. Rc5 {[%clk 0:07:51.1]} 24...
Rd8 {[%clk 0:06:48.8]} 25. g3 {[%clk 0:04:51.8]} 25... Nxb4 {[%clk 0:06:38.4]}
26. Rc4 {[%clk 0:04:40.8]} 26... Nc2 {[%clk 0:05:38.3]} 27. Rxc2 {[%clk
0:04:11.9]} 27... Rxd4 {[%clk 0:05:38.5]} 28. Rxc6 {[%clk 0:04:12.6]} 28... Ra4
{[%clk 0:05:39.4]} 29. Rc3 {[%clk 0:04:13.6]} 1/2-1/2

[Event "GrandPrix_29.05"]
[Site "Chess.com"]
[Date "2020.05.29"]
[Round "8"]
[White "DaVinci81"]
[Black "ArnaudovP"]
[Result "1-0"]
[WhiteElo "2521"]
[BlackElo "2347"]
[TimeControl "600+2"]
[EndTime "12:53:36 PDT"]
[Termination "DaVinci81 won by resignation"]

1. e4 {[%clk 0:10:01.9]} 1... e5 {[%clk 0:09:59.8]} 2. Nf3 {[%clk 0:10:02.5]}
2... Nc6 {[%clk 0:10:00.3]} 3. Bb5 {[%clk 0:10:02.7]} 3... a6 {[%clk 0:10:00.3]}
4. Ba4 {[%clk 0:10:03.7]} 4... Nf6 {[%clk 0:09:57.3]} 5. O-O {[%clk 0:10:04.5]}
5... Be7 {[%clk 0:09:54.1]} 6. Re1 {[%clk 0:10:04]} 6... b5 {[%clk 0:09:52.3]}
7. Bb3 {[%clk 0:10:05.3]} 7... d6 {[%clk 0:09:52.4]} 8. a4 {[%clk 0:10:01.6]}
8... Bd7 {[%clk 0:09:39.2]} 9. c3 {[%clk 0:10:02.5]} 9... O-O {[%clk 0:09:38.7]}
10. d4 {[%clk 0:10:03.3]} 10... h6 {[%clk 0:09:23.8]} 11. Nh4 {[%clk 0:09:58.3]}
11... Na5 {[%clk 0:08:55.5]} 12. Ba2 {[%clk 0:09:25]} 12... c5 {[%clk
0:08:54.1]} 13. Ng6 {[%clk 0:09:19.9]} 13... Re8 {[%clk 0:08:50.9]} 14. dxe5
{[%clk 0:09:16.9]} 14... dxe5 {[%clk 0:08:46.7]} 15. Nxe5 {[%clk 0:09:14.2]}
15... c4 {[%clk 0:08:45.6]} 16. Nxd7 {[%clk 0:09:10.9]} 16... Nxd7 {[%clk
0:08:41.6]} 17. Be3 {[%clk 0:08:17.9]} 17... Qc7 {[%clk 0:07:51.7]} 18. Nd2
{[%clk 0:08:13.1]} 18... Nc5 {[%clk 0:07:43.6]} 19. axb5 {[%clk 0:07:48.7]}
19... axb5 {[%clk 0:07:40]} 20. Bb1 {[%clk 0:07:48.4]} 20... Rad8 {[%clk
0:07:32.8]} 21. Qg4 {[%clk 0:07:42.5]} 21... Kh8 {[%clk 0:06:59]} 22. Nf3 {[%clk
0:07:23.8]} 22... Nab3 {[%clk 0:06:51.1]} 23. Ra2 {[%clk 0:07:23.6]} 23... Bf8
{[%clk 0:06:45.7]} 24. e5 {[%clk 0:07:09.2]} 24... g6 {[%clk 0:05:54]} 25. Qh4
{[%clk 0:06:27.1]} 25... Kh7 {[%clk 0:05:52.8]} 26. e6 {[%clk 0:05:43.5]} 26...
Bg7 {[%clk 0:04:28.9]} 27. exf7 {[%clk 0:05:39]} 27... Rxe3 {[%clk 0:04:28.8]}
28. fxe3 {[%clk 0:05:29.7]} 28... Rd5 {[%clk 0:04:25.2]} 1-0

[Event "GrandPrix_29.05"]
[Site "Chess.com"]
[Date "2020.05.29"]
[Round "8"]
[White "BakaPG"]
[Black "Zakaryan_David"]
[Result "1-0"]
[WhiteElo "2207"]
[BlackElo "1463"]
[TimeControl "600+2"]
[EndTime "12:53:49 PDT"]
[Termination "BakaPG won by resignation"]

1. e4 {[%clk 0:10:01.9]} 1... e5 {[%clk 0:09:53.8]} 2. Nf3 {[%clk 0:09:53.8]}
2... Nc6 {[%clk 0:09:51.8]} 3. Bb5 {[%clk 0:09:54.3]} 3... a6 {[%clk 0:09:50.3]}
4. Ba4 {[%clk 0:09:55.1]} 4... Nge7 {[%clk 0:09:49.4]} 5. O-O {[%clk 0:09:54.4]}
5... g6 {[%clk 0:09:48.7]} 6. d4 {[%clk 0:09:53.1]} 6... exd4 {[%clk 0:09:43.6]}
7. c3 {[%clk 0:09:52.5]} 7... Bg7 {[%clk 0:09:42.5]} 8. Nxd4 {[%clk 0:09:45.3]}
8... O-O {[%clk 0:09:39.9]} 9. Bg5 {[%clk 0:09:39]} 9... h6 {[%clk 0:09:33.8]}
10. Bh4 {[%clk 0:09:37.9]} 10... g5 {[%clk 0:09:11.7]} 11. Bg3 {[%clk
0:09:36.7]} 11... d6 {[%clk 0:09:12.1]} 12. f4 {[%clk 0:09:27.9]} 12... gxf4
{[%clk 0:09:06.3]} 13. Bxf4 {[%clk 0:09:27]} 13... Nxd4 {[%clk 0:08:49.8]} 14.
cxd4 {[%clk 0:09:26.5]} 14... Ng6 {[%clk 0:08:48.7]} 15. Be3 {[%clk 0:09:21]}
15... b5 {[%clk 0:08:41.3]} 16. Bb3 {[%clk 0:09:19.1]} 16... Be6 {[%clk
0:08:25.2]} 17. Nc3 {[%clk 0:09:09.4]} 17... Qh4 {[%clk 0:08:00.5]} 18. g3
{[%clk 0:08:56.5]} 18... Qd8 {[%clk 0:07:28.5]} 19. Qd2 {[%clk 0:08:52.7]} 19...
Kh7 {[%clk 0:07:26.8]} 20. Nd5 {[%clk 0:08:38]} 20... c6 {[%clk 0:07:22.2]} 21.
Nf4 {[%clk 0:08:32]} 21... Bxb3 {[%clk 0:07:21.1]} 22. axb3 {[%clk 0:08:32]}
22... Qe7 {[%clk 0:07:12.6]} 23. Nh5 {[%clk 0:08:28.5]} 23... Rh8 {[%clk
0:06:38.6]} 24. Rae1 {[%clk 0:08:22.3]} 24... Rae8 {[%clk 0:06:26.2]} 25. Rf5
{[%clk 0:07:28.6]} 25... Qe6 {[%clk 0:06:09]} 26. Ref1 {[%clk 0:07:19]} 26...
Re7 {[%clk 0:06:07.5]} 27. d5 {[%clk 0:06:22.1]} 27... cxd5 {[%clk 0:06:04.9]}
28. Nxg7 {[%clk 0:06:14.7]} 28... Kxg7 {[%clk 0:06:00.8]} 29. Bd4+ {[%clk
0:06:14]} 29... Ne5 {[%clk 0:05:58.4]} 30. exd5 {[%clk 0:06:14.1]} 30... Qg6
{[%clk 0:05:48.2]} 31. Qf4 {[%clk 0:06:09.5]} 31... Rhe8 {[%clk 0:05:35.6]} 32.
Rf6 {[%clk 0:06:04.3]} 32... Qg5 {[%clk 0:05:34.4]} 33. Rxd6 {[%clk 0:06:01.7]}
33... Kg8 {[%clk 0:05:29.1]} 34. Rxh6 {[%clk 0:05:55.3]} 34... Qxf4 {[%clk
0:05:20.2]} 35. gxf4 {[%clk 0:05:54.7]} 35... Ng6 {[%clk 0:05:10.6]} 36. Bf6
{[%clk 0:05:44.9]} 36... Re4 {[%clk 0:04:57.4]} 37. f5 {[%clk 0:05:42.5]} 37...
Rg4+ {[%clk 0:04:55.7]} 38. Kh1 {[%clk 0:05:42.2]} 1-0

[Event "GrandPrix_29.05"]
[Site "Chess.com"]
[Date "2020.05.29"]
[Round "8"]
[White "XeresLt"]
[Black "WhiteCapital80"]
[Result "0-1"]
[WhiteElo "1895"]
[BlackElo "2167"]
[TimeControl "600+2"]
[EndTime "12:53:51 PDT"]
[Termination "WhiteCapital80 won by resignation"]

1. e4 {[%clk 0:10:01.9]} 1... e6 {[%clk 0:09:54.9]} 2. d4 {[%clk 0:10:02.7]}
2... d5 {[%clk 0:09:55.9]} 3. Nc3 {[%clk 0:10:01.3]} 3... Nf6 {[%clk 0:09:56.3]}
4. e5 {[%clk 0:10:02.2]} 4... Ne4 {[%clk 0:09:57]} 5. Nxe4 {[%clk 0:09:58.8]}
5... dxe4 {[%clk 0:09:55.9]} 6. Be3 {[%clk 0:10:00.4]} 6... c5 {[%clk
0:09:56.4]} 7. dxc5 {[%clk 0:09:58.3]} 7... Nd7 {[%clk 0:09:53.3]} 8. Qg4 {[%clk
0:09:30.2]} 8... Nxc5 {[%clk 0:09:37.3]} 9. Bb5+ {[%clk 0:08:54.4]} 9... Nd7
{[%clk 0:09:30.5]} 10. O-O-O {[%clk 0:07:46.5]} 10... Qa5 {[%clk 0:09:12.4]} 11.
a4 {[%clk 0:07:28.4]} 11... a6 {[%clk 0:08:49.7]} 12. Bd2 {[%clk 0:06:53.8]}
12... Qc7 {[%clk 0:08:48.3]} 13. Bxd7+ {[%clk 0:06:52.7]} 13... Bxd7 {[%clk
0:08:48.7]} 14. Qxe4 {[%clk 0:06:51]} 14... Bc6 {[%clk 0:08:42.6]} 15. Qg4
{[%clk 0:06:49.7]} 15... h5 {[%clk 0:07:21.3]} 16. Qg5 {[%clk 0:06:41.8]} 16...
Bxa4 {[%clk 0:07:09.4]} 17. Bc3 {[%clk 0:06:38.4]} 17... b5 {[%clk 0:06:53.9]}
18. Rd2 {[%clk 0:06:04.5]} 18... b4 {[%clk 0:06:35]} 19. Bd4 {[%clk 0:05:33.7]}
19... Rc8 {[%clk 0:06:34.8]} 20. c3 {[%clk 0:05:30.6]} 20... Bb3 {[%clk
0:06:09.1]} 21. Qe3 {[%clk 0:04:27.2]} 21... Qa5 {[%clk 0:05:48.8]} 22. Qd3
{[%clk 0:04:27.5]} 22... bxc3 {[%clk 0:05:05.3]} 23. Bxc3 {[%clk 0:04:27.3]}
23... Qa1+ {[%clk 0:04:48.3]} 24. Qb1 {[%clk 0:04:27.7]} 24... Rxc3+ {[%clk
0:04:48.7]} 25. bxc3 {[%clk 0:04:29.6]} 25... Ba3+ {[%clk 0:04:49.3]} 0-1

[Event "GrandPrix_29.05"]
[Site "Chess.com"]
[Date "2020.05.29"]
[Round "8"]
[White "VincentKeymer"]
[Black "DenLaz"]
[Result "1-0"]
[WhiteElo "2759"]
[BlackElo "2725"]
[TimeControl "600+2"]
[EndTime "12:54:13 PDT"]
[Termination "VincentKeymer won by resignation"]

1. Nf3 {[%clk 0:10:00.1]} 1... d5 {[%clk 0:09:58.9]} 2. e3 {[%clk 0:10:01]} 2...
Nf6 {[%clk 0:09:57.8]} 3. c4 {[%clk 0:10:02.5]} 3... c6 {[%clk 0:09:59]} 4. Nc3
{[%clk 0:10:03.8]} 4... Bf5 {[%clk 0:09:59.6]} 5. cxd5 {[%clk 0:10:02.7]} 5...
cxd5 {[%clk 0:10:00.7]} 6. Qb3 {[%clk 0:10:04.1]} 6... Bc8 {[%clk 0:10:01.8]} 7.
d4 {[%clk 0:10:03.6]} 7... e6 {[%clk 0:10:02.5]} 8. Bd3 {[%clk 0:10:04.9]} 8...
Nc6 {[%clk 0:10:02.9]} 9. O-O {[%clk 0:10:05.6]} 9... Be7 {[%clk 0:10:00.6]} 10.
Bd2 {[%clk 0:09:57.8]} 10... O-O {[%clk 0:10:00.7]} 11. Rfc1 {[%clk 0:09:58.1]}
11... Bd7 {[%clk 0:09:32.4]} 12. Na4 {[%clk 0:09:43.7]} 12... b6 {[%clk
0:09:26.4]} 13. Qd1 {[%clk 0:09:06]} 13... Bd6 {[%clk 0:09:18.6]} 14. Nc3 {[%clk
0:08:54.3]} 14... Qe7 {[%clk 0:08:15.5]} 15. e4 {[%clk 0:08:31.6]} 15... Nb4
{[%clk 0:08:15.2]} 16. Bg5 {[%clk 0:08:15.4]} 16... dxe4 {[%clk 0:07:38.3]} 17.
Nxe4 {[%clk 0:08:10.1]} 17... Nbd5 {[%clk 0:07:39.3]} 18. Ne5 {[%clk 0:07:56.9]}
18... Rfc8 {[%clk 0:07:22.7]} 19. Bxf6 {[%clk 0:07:23.7]} 19... gxf6 {[%clk
0:06:41.2]} 20. Nxd6 {[%clk 0:07:15.7]} 20... Qxd6 {[%clk 0:06:37.2]} 21. Bxh7+
{[%clk 0:07:16.3]} 21... Kf8 {[%clk 0:06:34.9]} 22. Nxd7+ {[%clk 0:07:11.6]}
22... Qxd7 {[%clk 0:06:36.8]} 23. Be4 {[%clk 0:07:11]} 23... Ke7 {[%clk
0:06:30.5]} 24. g3 {[%clk 0:07:02.2]} 24... Rab8 {[%clk 0:06:26.7]} 25. Qb3
{[%clk 0:07:01.2]} 25... f5 {[%clk 0:06:20.9]} 26. Bxd5 {[%clk 0:06:56]} 26...
Qxd5 {[%clk 0:06:22.8]} 27. Qxd5 {[%clk 0:06:46.2]} 27... exd5 {[%clk
0:06:24.7]} 28. Kg2 {[%clk 0:06:41.6]} 28... Rc4 {[%clk 0:06:23.7]} 29. Rxc4
{[%clk 0:06:36.1]} 29... dxc4 {[%clk 0:06:25.6]} 30. Re1+ {[%clk 0:06:37.1]}
30... Kf6 {[%clk 0:06:19.7]} 31. Kf3 {[%clk 0:06:36.1]} 31... b5 {[%clk
0:06:15]} 32. Re5 {[%clk 0:06:14.4]} 32... a6 {[%clk 0:05:42.3]} 33. Kf4 {[%clk
0:06:14.2]} 33... Rd8 {[%clk 0:05:42.9]} 34. Rxf5+ {[%clk 0:06:14.3]} 34... Kg6
{[%clk 0:05:43.8]} 35. Ke4 {[%clk 0:05:42.2]} 35... f6 {[%clk 0:05:41.1]} 36.
Rc5 {[%clk 0:05:14.6]} 36... Re8+ {[%clk 0:05:41]} 37. Kf3 {[%clk 0:05:16.1]}
37... Re1 {[%clk 0:05:42]} 38. b3 {[%clk 0:05:15.9]} 38... cxb3 {[%clk
0:05:36.2]} 39. axb3 {[%clk 0:05:17.8]} 39... Rb1 {[%clk 0:05:33.9]} 40. Rc3
{[%clk 0:05:17.2]} 40... Kf5 {[%clk 0:05:35.4]} 41. h4 {[%clk 0:05:09.8]} 41...
Ke6 {[%clk 0:05:35.7]} 42. Rc6+ {[%clk 0:05:02]} 42... Kf5 {[%clk 0:05:36.3]}
43. g4+ {[%clk 0:05:00.2]} 43... Kg6 {[%clk 0:05:35.8]} 44. Rxa6 {[%clk
0:04:59]} 44... Rxb3+ {[%clk 0:05:36.2]} 45. Ke4 {[%clk 0:04:56]} 45... Rh3
{[%clk 0:05:34.9]} 46. g5 {[%clk 0:04:53.6]} 46... Rxh4+ {[%clk 0:05:35.5]} 47.
f4 {[%clk 0:04:55.2]} 1-0

[Event "GrandPrix_29.05"]
[Site "Chess.com"]
[Date "2020.05.29"]
[Round "8"]
[White "RussianChessFighter"]
[Black "ZEN-22"]
[Result "0-1"]
[WhiteElo "2135"]
[BlackElo "2186"]
[TimeControl "600+2"]
[EndTime "12:54:15 PDT"]
[Termination "ZEN-22 won by resignation"]

1. c4 {[%clk 0:10:01.9]} 1... d5 {[%clk 0:09:57.7]} 2. cxd5 {[%clk 0:10:02.2]}
2... c6 {[%clk 0:09:49]} 3. dxc6 {[%clk 0:10:02.5]} 3... Nxc6 {[%clk 0:09:49.9]}
4. Nc3 {[%clk 0:10:04.1]} 4... e5 {[%clk 0:09:50.4]} 5. g3 {[%clk 0:10:05]} 5...
Bc5 {[%clk 0:09:49.3]} 6. Bg2 {[%clk 0:10:05.7]} 6... Qb6 {[%clk 0:09:48.5]} 7.
Na4 {[%clk 0:09:32]} 7... Bxf2+ {[%clk 0:09:48.5]} 8. Kf1 {[%clk 0:09:30.8]}
8... Bxg1 {[%clk 0:09:50.4]} 9. Nxb6 {[%clk 0:09:31]} 9... Bxb6 {[%clk
0:09:52.3]} 10. b3 {[%clk 0:09:15.4]} 10... Nf6 {[%clk 0:09:51.6]} 11. Ba3
{[%clk 0:09:15.2]} 11... Ng4 {[%clk 0:09:23.3]} 12. Qc2 {[%clk 0:09:10]} 12...
Nd4 {[%clk 0:09:11.1]} 13. Qc4 {[%clk 0:08:40.1]} 13... Be6 {[%clk 0:09:09.7]}
14. Qb4 {[%clk 0:08:39.4]} 14... O-O-O {[%clk 0:08:55.7]} 15. Rc1+ {[%clk
0:08:38.7]} 15... Kb8 {[%clk 0:08:55.3]} 16. h3 {[%clk 0:08:36.9]} 16... Nf2
{[%clk 0:08:17.6]} 17. Rh2 {[%clk 0:07:53.5]} 17... f5 {[%clk 0:08:03.1]} 18.
Bxb7 {[%clk 0:07:09.8]} 18... Kxb7 {[%clk 0:07:55.5]} 19. Rxf2 {[%clk
0:07:08.9]} 19... Rc8 {[%clk 0:07:26]} 20. Qe7+ {[%clk 0:06:53.7]} 20... Ka8
{[%clk 0:07:26.2]} 21. e3 {[%clk 0:06:49.3]} 21... Rce8 {[%clk 0:06:47.7]} 22.
Qd6 {[%clk 0:06:38.5]} 22... Rd8 {[%clk 0:06:43.2]} 23. Qb4 {[%clk 0:06:22.9]}
23... f4 {[%clk 0:05:52.6]} 24. exd4 {[%clk 0:06:20.5]} 24... Bxh3+ {[%clk
0:05:52.8]} 25. Kg1 {[%clk 0:05:32.1]} 25... fxg3 {[%clk 0:05:50.3]} 26. Rf7
{[%clk 0:05:31]} 26... Rxd4 {[%clk 0:05:44.9]} 27. Qe7 {[%clk 0:04:18.1]} 27...
Rc4+ {[%clk 0:05:07.5]} 0-1

[Event "GrandPrix_29.05"]
[Site "Chess.com"]
[Date "2020.05.29"]
[Round "8"]
[White "Pidzsy"]
[Black "MirMan90"]
[Result "1-0"]
[WhiteElo "2285"]
[BlackElo "2265"]
[TimeControl "600+2"]
[EndTime "12:54:21 PDT"]
[Termination "Pidzsy won by resignation"]

1. e4 {[%clk 0:09:57.6]} 1... c5 {[%clk 0:10:00.9]} 2. Nf3 {[%clk 0:09:58.3]}
2... d6 {[%clk 0:10:02.2]} 3. d4 {[%clk 0:09:59.9]} 3... cxd4 {[%clk 0:10:03.7]}
4. Nxd4 {[%clk 0:10:01.2]} 4... Nf6 {[%clk 0:10:05.2]} 5. Nc3 {[%clk 0:10:02.7]}
5... g6 {[%clk 0:10:06.6]} 6. Be3 {[%clk 0:10:03.1]} 6... Bg7 {[%clk 0:10:08.1]}
7. f3 {[%clk 0:10:04.4]} 7... Nc6 {[%clk 0:10:09.5]} 8. Qd2 {[%clk 0:10:05.9]}
8... O-O {[%clk 0:10:10.6]} 9. O-O-O {[%clk 0:10:06.9]} 9... Nxd4 {[%clk
0:10:11.6]} 10. Bxd4 {[%clk 0:10:07.1]} 10... Be6 {[%clk 0:10:13]} 11. Kb1
{[%clk 0:09:54.6]} 11... Qc7 {[%clk 0:10:11.4]} 12. h4 {[%clk 0:09:50.4]} 12...
Rfc8 {[%clk 0:10:11.4]} 13. h5 {[%clk 0:09:48.2]} 13... Qa5 {[%clk 0:10:12.2]}
14. hxg6 {[%clk 0:09:36.8]} 14... hxg6 {[%clk 0:10:11]} 15. a3 {[%clk
0:09:30.8]} 15... Rab8 {[%clk 0:10:10.6]} 16. Bd3 {[%clk 0:08:44.4]} 16... Bc4
{[%clk 0:10:02.1]} 17. Bxc4 {[%clk 0:07:49.8]} 17... Rxc4 {[%clk 0:10:01.5]} 18.
Bxf6 {[%clk 0:06:49.2]} 18... Bxf6 {[%clk 0:09:35.5]} 19. Nd5 {[%clk 0:06:49.7]}
19... Qxd2 {[%clk 0:09:33.9]} 20. Nxf6+ {[%clk 0:06:50.8]} 20... Kg7 {[%clk
0:09:32.4]} 21. Nh5+ {[%clk 0:06:51.8]} 21... gxh5 {[%clk 0:09:33.2]} 22. Rxd2
{[%clk 0:06:53.5]} 22... Rc5 {[%clk 0:09:28.1]} 23. c3 {[%clk 0:06:39.6]} 23...
Rh8 {[%clk 0:09:18.4]} 24. Kc2 {[%clk 0:06:39.2]} 24... h4 {[%clk 0:09:18.2]}
25. Kd3 {[%clk 0:06:37.8]} 25... Rg5 {[%clk 0:09:14.7]} 26. Ke3 {[%clk
0:06:36.2]} 26... Kf6 {[%clk 0:09:15.6]} 27. Rh2 {[%clk 0:06:29.2]} 27... Rg3
{[%clk 0:08:56.1]} 28. Kf4 {[%clk 0:06:10.3]} 28... Rhg8 {[%clk 0:08:36]} 29. a4
{[%clk 0:06:09.6]} 29... R8g4+ {[%clk 0:08:01.4]} 30. Ke3 {[%clk 0:06:09]} 30...
e6 {[%clk 0:07:59.9]} 31. Kf2 {[%clk 0:05:55.8]} 31... Rg8 {[%clk 0:07:38.7]}
32. Rxd6 {[%clk 0:05:56.3]} 32... h3 {[%clk 0:07:31.8]} 33. gxh3 {[%clk
0:05:53.6]} 33... Ke5 {[%clk 0:07:26.9]} 34. Rd7 {[%clk 0:05:51]} 34... Rg1
{[%clk 0:06:01.2]} 35. Rxf7 {[%clk 0:05:50.3]} 35... b6 {[%clk 0:05:21.1]} 36.
Rxa7 {[%clk 0:05:31.6]} 36... Rd1 {[%clk 0:05:14.5]} 37. Ke3 {[%clk 0:05:17.4]}
37... Rgd8 {[%clk 0:05:14.8]} 38. f4+ {[%clk 0:05:07.5]} 38... Kf6 {[%clk
0:05:15.3]} 39. e5+ {[%clk 0:05:06.1]} 39... Kg6 {[%clk 0:05:04.9]} 40. Rg2+
{[%clk 0:05:07]} 40... Kh6 {[%clk 0:05:05.6]} 41. Re7 {[%clk 0:05:02.6]} 1-0

[Event "GrandPrix_29.05"]
[Site "Chess.com"]
[Date "2020.05.29"]
[Round "8"]
[White "AnotherGrumpy"]
[Black "KacperKacprzak"]
[Result "0-1"]
[WhiteElo "1895"]
[BlackElo "2052"]
[TimeControl "600+2"]
[EndTime "12:54:40 PDT"]
[Termination "KacperKacprzak won by resignation"]

1. d4 {[%clk 0:09:55.5]} 1... Nf6 {[%clk 0:09:59.9]} 2. c4 {[%clk 0:09:56.2]}
2... d6 {[%clk 0:10:00.3]} 3. Nc3 {[%clk 0:09:54.1]} 3... Nbd7 {[%clk 0:10:00]}
4. g3 {[%clk 0:09:51.8]} 4... g6 {[%clk 0:10:00.5]} 5. Bg2 {[%clk 0:09:52.2]}
5... Bg7 {[%clk 0:10:01.8]} 6. Nf3 {[%clk 0:09:45.5]} 6... O-O {[%clk
0:10:02.5]} 7. O-O {[%clk 0:09:46.2]} 7... e5 {[%clk 0:10:03.7]} 8. e4 {[%clk
0:09:46.9]} 8... Re8 {[%clk 0:10:02.8]} 9. h3 {[%clk 0:09:46.8]} 9... exd4
{[%clk 0:10:02.3]} 10. Nxd4 {[%clk 0:09:48.7]} 10... Nc5 {[%clk 0:10:02.7]} 11.
Re1 {[%clk 0:09:49.2]} 11... a5 {[%clk 0:10:01.2]} 12. Qc2 {[%clk 0:09:48.6]}
12... Bd7 {[%clk 0:09:11.1]} 13. Be3 {[%clk 0:09:45.7]} 13... Qe7 {[%clk
0:09:01.6]} 14. Rad1 {[%clk 0:09:36.5]} 14... h5 {[%clk 0:08:57.2]} 15. Bg5
{[%clk 0:09:34.5]} 15... Qf8 {[%clk 0:08:42.7]} 16. Bxf6 {[%clk 0:09:15.7]}
16... Bxf6 {[%clk 0:08:44.6]} 17. Nd5 {[%clk 0:09:17]} 17... Bd8 {[%clk
0:08:44.8]} 18. b3 {[%clk 0:08:45.2]} 18... Qg7 {[%clk 0:08:34.5]} 19. a3 {[%clk
0:08:41.9]} 19... c6 {[%clk 0:08:32.6]} 20. Nf4 {[%clk 0:08:28.7]} 20... Bf6
{[%clk 0:08:30.3]} 21. Nf3 {[%clk 0:08:29.8]} 21... Qf8 {[%clk 0:08:12]} 22. b4
{[%clk 0:08:06.4]} 22... axb4 {[%clk 0:08:09]} 23. axb4 {[%clk 0:08:08.3]} 23...
Ne6 {[%clk 0:08:05.5]} 24. e5 {[%clk 0:08:03.7]} 24... Nxf4 {[%clk 0:07:42.4]}
25. gxf4 {[%clk 0:08:03.8]} 25... Bf5 {[%clk 0:07:30.7]} 26. Qb3 {[%clk
0:08:02.6]} 26... dxe5 {[%clk 0:07:30.4]} 27. fxe5 {[%clk 0:08:04.5]} 27... Be7
{[%clk 0:07:28.6]} 28. b5 {[%clk 0:07:53.7]} 28... Ra3 {[%clk 0:07:26.2]} 29.
Qb2 {[%clk 0:07:49]} 29... Bxh3 {[%clk 0:05:52.9]} 30. Bxh3 {[%clk 0:07:46.1]}
30... Rxf3 {[%clk 0:05:53]} 31. Bg2 {[%clk 0:07:47.4]} 31... Rf4 {[%clk
0:05:46.9]} 32. bxc6 {[%clk 0:07:41.4]} 32... bxc6 {[%clk 0:05:48.8]} 33. Bxc6
{[%clk 0:07:41.9]} 33... Rb8 {[%clk 0:05:49.8]} 34. Qc2 {[%clk 0:07:36.2]} 34...
Bc5 {[%clk 0:05:48.4]} 35. Re2 {[%clk 0:07:33.9]} 35... Qh6 {[%clk 0:05:30.9]}
36. e6 {[%clk 0:07:23.5]} 36... fxe6 {[%clk 0:04:54.9]} 37. Kf1 {[%clk
0:06:33.8]} 37... Rbf8 {[%clk 0:04:47.7]} 38. f3 {[%clk 0:06:29.8]} 38... Qg5
{[%clk 0:04:31.9]} 39. Rg2 {[%clk 0:05:58.4]} 39... Rxf3+ {[%clk 0:03:58.6]} 40.
Bxf3 {[%clk 0:05:59.5]} 40... Rxf3+ {[%clk 0:04:00.5]} 41. Ke1 {[%clk
0:06:00.2]} 41... Bb4+ {[%clk 0:03:53.5]} 42. Rdd2 {[%clk 0:06:01.1]} 42... Qxg2
{[%clk 0:03:50.3]} 0-1

[Event "GrandPrix_29.05"]
[Site "Chess.com"]
[Date "2020.05.29"]
[Round "8"]
[White "Gurvich_Vitaly"]
[Black "Borisss85"]
[Result "1-0"]
[WhiteElo "2426"]
[BlackElo "2191"]
[TimeControl "600+2"]
[EndTime "12:54:44 PDT"]
[Termination "Gurvich_Vitaly won by resignation"]

1. e4 {[%clk 0:10:01.7]} 1... c5 {[%clk 0:10:00.4]} 2. Nf3 {[%clk 0:10:02.5]}
2... e6 {[%clk 0:10:00.7]} 3. g3 {[%clk 0:10:03]} 3... Nc6 {[%clk 0:09:55.3]} 4.
Bg2 {[%clk 0:10:03.8]} 4... Nf6 {[%clk 0:09:55.2]} 5. d3 {[%clk 0:10:02.9]} 5...
d5 {[%clk 0:09:53.9]} 6. exd5 {[%clk 0:10:04.8]} 6... exd5 {[%clk 0:09:54]} 7.
O-O {[%clk 0:10:06.7]} 7... Be7 {[%clk 0:09:54.6]} 8. d4 {[%clk 0:10:07.6]} 8...
O-O {[%clk 0:09:50.5]} 9. dxc5 {[%clk 0:10:08.8]} 9... Bxc5 {[%clk 0:09:50.8]}
10. Nbd2 {[%clk 0:10:10.7]} 10... h6 {[%clk 0:09:49.5]} 11. Nb3 {[%clk
0:10:11.4]} 11... Bb6 {[%clk 0:09:50.1]} 12. Nfd4 {[%clk 0:10:09.4]} 12... Bg4
{[%clk 0:09:45.8]} 13. Qd3 {[%clk 0:10:07.3]} 13... Qd7 {[%clk 0:09:11.4]} 14.
Bf4 {[%clk 0:10:04.9]} 14... Rac8 {[%clk 0:09:01.6]} 15. c3 {[%clk 0:10:02.3]}
15... Bh3 {[%clk 0:08:45.3]} 16. Rfe1 {[%clk 0:10:02.3]} 16... Rfe8 {[%clk
0:08:42.3]} 17. Nxc6 {[%clk 0:09:50.9]} 17... bxc6 {[%clk 0:08:35.1]} 18. Be3
{[%clk 0:09:27.5]} 18... Bxg2 {[%clk 0:08:26]} 19. Kxg2 {[%clk 0:09:28.3]} 19...
Bxe3 {[%clk 0:07:36.8]} 20. Rxe3 {[%clk 0:09:30.2]} 20... Rxe3 {[%clk 0:07:36]}
21. Qxe3 {[%clk 0:09:32.1]} 21... Re8 {[%clk 0:07:34.1]} 22. Qf3 {[%clk
0:09:30.8]} 22... Ng4 {[%clk 0:07:14.7]} 23. Nc5 {[%clk 0:09:25.1]} 23... Qc8
{[%clk 0:07:02.1]} 24. b4 {[%clk 0:09:21.1]} 24... Ne5 {[%clk 0:06:57.8]} 25.
Qf4 {[%clk 0:09:21.9]} 25... Nc4 {[%clk 0:06:52.4]} 26. Qf3 {[%clk 0:09:06.6]}
26... Qc7 {[%clk 0:05:58.5]} 27. Rd1 {[%clk 0:09:04.4]} 27... a5 {[%clk
0:05:36.7]} 28. a4 {[%clk 0:08:36]} 28... axb4 {[%clk 0:05:34.1]} 29. cxb4
{[%clk 0:08:37.9]} 29... Qb6 {[%clk 0:05:25.3]} 30. Nd3 {[%clk 0:08:37.6]} 30...
Qa7 {[%clk 0:05:17.1]} 31. a5 {[%clk 0:08:35.4]} 31... Qe7 {[%clk 0:04:58.7]}
32. Re1 {[%clk 0:08:30.3]} 32... Qd8 {[%clk 0:04:55.9]} 33. Ra1 {[%clk
0:08:27.2]} 33... Nd2 {[%clk 0:04:39.9]} 34. Qf4 {[%clk 0:08:22.1]} 34... Nc4
{[%clk 0:04:38.7]} 35. a6 {[%clk 0:08:20.5]} 35... Qa8 {[%clk 0:04:17.3]} 36.
Nc5 {[%clk 0:08:18.6]} 36... Rb8 {[%clk 0:04:13]} 37. a7 {[%clk 0:07:46.9]}
37... Rxb4 {[%clk 0:04:12.3]} 38. Qc7 {[%clk 0:07:47.3]} 38... d4 {[%clk
0:03:53.7]} 39. Ra4 {[%clk 0:07:15.7]} 39... Rxa4 {[%clk 0:02:18.3]} 40. Qb8+
{[%clk 0:07:14.9]} 1-0